bitfinex/quotes_SOLUSD_20241209
["timestamp","ask_amount","ask_price","bid_price","bid_amount"]
[1733750904826,8.0771,229.67,229.59,12.67651021]
[1733750905135,8.0771,229.67,229.61,0.12549]
[1733750905826,7.9432,229.77,229.62,12.55102021]
[1733750906109,7.9432,229.77,229.61,0.12549]
[1733750906110,7.9432,229.77,229.63,13.32959203]
[1733750907192,7.9432,229.77,229.63,0.77857182]
[1733750908294,7.9432,229.77,229.6,23.776884]
[1733750908505,20.0,229.74,229.57,0.65312548]
[1733750908992,8.2519,229.72,229.59,12.55102021]
[1733750909200,8.2519,229.72,229.6,0.65313071]
[1733750910201,8.2519,229.72,229.59,0.65313975]
[1733750911793,8.2519,229.72,229.61,0.12549]
[1733750912012,8.2519,229.72,229.62,0.12549]
[1733750913630,8.2519,229.72,229.57,12.55102021]
[1733750913796,8.2519,229.72,229.55,23.776884]
[1733750914116,20.0,229.69,229.51,14.10222021]
[1733750914367,20.0,229.65,229.47,0.65333267]
[1733750914499,20.0,229.65,229.47,13.20435288]
[1733750914691,20.0,229.65,229.49,12.55102021]
[1733750914885,20.0,229.65,229.5,0.65338764]
[1733750915091,20.0,229.65,229.5,0.12549]
[1733750915315,20.0,229.65,229.48,12.55102021]
[1733750915524,20.0,229.65,229.49,36.57888421]
[1733750915714,20.0,229.65,229.49,36.32790421]
[1733750916120,20.0,229.65,229.51,36.32790421]
[1733750916315,20.0,229.65,229.52,0.25098]
[1733750916686,7.6873,229.68,229.52,0.25098]
[1733750916891,20.0,229.65,229.52,13.45531]
[1733750917158,7.6873,229.68,229.52,13.45531]
[1733750917314,7.6873,229.68,229.54,0.25098]
[1733750917515,7.6873,229.68,229.54,0.90424542]
[1733750917797,7.6873,229.68,229.56,0.25098]
[1733750918419,7.6873,229.68,229.49,0.65319254]
[1733750918621,7.6873,229.68,229.52,12.55102021]
[1733750918807,7.6873,229.68,229.53,36.32790421]
[1733750919005,7.6873,229.68,229.54,12.67651021]
[1733750919415,7.6873,229.68,229.55,23.776884]
[1733750920135,7.6873,229.68,229.56,0.12549]
[1733750920335,7.6873,229.68,229.54,23.776884]
[1733750920638,7.6873,229.68,229.52,23.776884]
[1733750920807,7.6873,229.68,229.53,0.12549]
[1733750921010,20.0,229.65,229.53,0.12549]
[1733750921415,7.6873,229.68,229.55,0.12549]
[1733750922927,7.6873,229.68,229.55,23.776884]
[1733750923319,7.6873,229.68,229.52,12.55102021]
[1733750923512,7.6873,229.68,229.47,0.65328728]
[1733750923513,7.6873,229.68,229.51,23.776884]
[1733750923713,7.6873,229.68,229.52,0.25098]
[1733750923923,20.0,229.65,229.52,0.12549]
[1733750924468,20.0,229.61,229.46,13.20441246]
[1733750925039,20.0,229.61,229.47,0.25098]
[1733750925216,20.0,229.61,229.49,0.12549]
[1733750925808,7.6808,229.64,229.5,12.67651021]
[1733750926010,7.6808,229.64,229.5,12.55102021]
[1733750926306,7.6808,229.64,229.51,23.776884]
[1733750927531,7.6808,229.64,229.5,24.027864]
[1733750929448,7.6808,229.64,229.5,36.57888421]
[1733750931828,7.6808,229.64,229.51,12.55102021]
[1733750932635,7.6808,229.64,229.49,12.55102021]
[1733750932816,7.6808,229.64,229.47,12.55102021]
[1733750932817,20.0,229.61,229.47,12.55102021]
[1733750933016,20.0,229.61,229.46,12.55102021]
[1733750933442,20.0,229.61,229.45,12.55102021]
[1733750933656,20.0,229.61,229.46,12.55102021]
[1733750934918,20.0,229.61,229.47,12.55102021]
[1733750935230,7.6808,229.64,229.51,12.55102021]
[1733750935849,7.6808,229.64,229.52,12.55102021]
[1733750937354,7.6808,229.64,229.51,36.45339421]
[1733750938330,7.6808,229.64,229.54,12.55102021]
[1733750938662,7.6808,229.64,229.57,12.80200021]
[1733750938952,7.6808,229.64,229.58,23.776884]
[1733750939148,7.6808,229.64,229.55,12.55102021]
[1733750939376,7.6808,229.64,229.54,23.776884]
[1733750939654,7.6808,229.64,229.53,23.776884]
[1733750939827,7.6808,229.64,229.54,0.12549]
[1733750940026,7.6808,229.64,229.53,23.776884]
[1733750940868,7.6808,229.64,229.47,0.65336595]
[1733750940869,7.6808,229.64,229.5,12.55102021]
[1733750941080,20.0,229.61,229.43,0.65344849]
[1733750941239,20.0,229.61,229.46,12.55102021]
[1733750941443,0.12549,229.63,229.42,1.6542]
[1733750941444,0.12549,229.63,229.49,12.55102021]
[1733750941645,20.0,229.61,229.47,12.55102021]
[1733750942076,20.0,229.61,229.46,12.55102021]
[1733750942449,7.6808,229.64,229.49,12.55102021]
[1733750942965,7.6808,229.64,229.5,12.55102021]
[1733750943344,7.6808,229.64,229.51,12.55102021]
[1733750943743,7.6808,229.64,229.52,23.902374]
[1733750945182,7.6808,229.64,229.5,12.55102021]
[1733750945511,20.0,229.61,229.49,0.25098]
[1733750945638,20.0,229.61,229.45,12.55102021]
[1733750945841,20.0,229.61,229.47,12.55102021]
[1733750946056,20.0,229.61,229.49,12.55102021]
[1733750946283,20.0,229.61,229.47,12.55102021]
[1733750946845,20.0,229.61,229.49,0.25098]
[1733750947054,20.0,229.61,229.47,12.55102021]
[1733750948158,20.0,229.61,229.48,0.12549]
[1733750949664,20.0,229.61,229.47,12.55102021]
[1733750949665,20.0,229.56,229.42,12.55102021]
[1733750949862,20.0,229.56,229.41,13.20455419]
[1733750950054,20.0,229.56,229.43,12.55102021]
[1733750950254,20.0,229.56,229.44,0.12549]
[1733750950582,20.0,229.56,229.43,12.55102021]
[1733750950781,20.0,229.56,229.42,0.25098]
[1733750950954,1.5937,229.55,229.42,12.80200021]
[1733750951154,1.5937,229.55,229.42,12.67651021]
[1733750951358,1.5937,229.55,229.44,0.12549]
[1733750952079,1.5937,229.55,229.42,12.80200021]
[1733750952448,1.5937,229.55,229.42,0.25098]
[1733750952850,1.5937,229.55,229.43,12.67651021]
[1733750954189,1.5937,229.55,229.42,12.80200021]
[1733750954481,1.5937,229.55,229.43,0.12549]
[1733750954848,1.5937,229.55,229.41,23.776884]
[1733750955053,20.0,229.5,229.34,12.55102021]
[1733750955280,20.0,229.46,229.3,12.70409903]
[1733750955581,6.2445,229.44,229.3,0.15307882]
[1733750955790,20.0,229.41,229.29,12.55102021]
[1733750955964,6.2445,229.44,229.37,12.55102021]
[1733750956284,6.2445,229.44,229.38,0.12549]
[1733750956495,6.2445,229.44,229.4,0.12549]
[1733750956799,1.529,229.5,229.42,0.12549]
[1733750958188,1.529,229.5,229.43,23.776884]
[1733750958921,1.529,229.5,229.42,23.902374]
[1733750960287,1.529,229.5,229.42,12.67651021]
[1733750960477,1.529,229.5,229.44,12.67651021]
[1733750960681,1.529,229.5,229.44,0.12549]
[1733750961288,1.529,229.5,229.44,12.67651021]
[1733750961588,1.529,229.5,229.45,23.776884]
[1733750962360,1.529,229.5,229.44,23.902374]
[1733750962586,7.6077,229.56,229.47,23.902374]
[1733750962956,7.6077,229.56,229.48,0.12549]
[1733750963286,7.6077,229.56,229.49,23.902374]
[1733750963862,7.6077,229.56,229.48,23.902374]
[1733750964062,7.6077,229.56,229.49,0.12549]
[1733750964766,7.6077,229.56,229.47,24.027864]
[1733750964963,7.6077,229.56,229.48,23.776884]
[1733750965493,7.6077,229.56,229.48,36.32790421]
[1733750965867,7.6077,229.56,229.5,36.32790421]
[1733750967406,8.0851,229.61,229.5,36.32790421]
[1733750967698,8.0851,229.61,229.51,0.12549]
[1733750970071,8.0851,229.61,229.53,12.55102021]
[1733750970287,8.0851,229.61,229.54,23.776884]
[1733750971183,6.81432814,229.74,229.56,36.32790421]
[1733750971184,6.3311,229.66,229.56,36.32790421]
[1733750971394,6.3311,229.66,229.57,0.12549]
[1733750971716,6.3311,229.66,229.58,23.776884]
[1733750971887,6.3311,229.66,229.59,0.12549]
[1733750972226,6.3311,229.66,229.6,23.776884]
[1733750972685,6.3311,229.66,229.6,12.55102021]
[1733750972890,6.5162,229.73,229.61,23.902374]
[1733750973493,6.5162,229.73,229.6,23.902374]
[1733750973689,6.5162,229.73,229.53,0.65313678]
[1733750973910,20.0,229.7,229.54,23.776884]
[1733750974090,20.0,229.7,229.53,23.776884]
[1733750974588,26.76718,229.71,229.52,12.55102021]
[1733750974797,20.12549,229.68,229.52,12.55102021]
[1733750975086,20.0,229.68,229.54,0.12549]
[1733750975487,20.0,229.68,229.54,12.67651021]
[1733750975996,20.0,229.68,229.56,0.12549]
[1733750977026,20.0,229.68,229.54,23.902374]
[1733750977224,20.0,229.68,229.54,0.12549]
[1733750978739,1.6215,229.67,229.49,36.32790421]
[1733750979044,1.6215,229.67,229.5,0.25098]
[1733750979225,1.6215,229.67,229.49,36.32790421]
[1733750979226,20.0,229.63,229.49,23.776884]
[1733750979415,1.6215,229.62,229.46,0.65346185]
[1733750979617,6.1377,229.61,229.47,0.25098]
[1733750979857,6.1377,229.61,229.49,0.12549]
[1733750980536,6.1377,229.61,229.49,12.67651021]
[1733750980737,6.1377,229.61,229.51,0.12549]
[1733750981045,6.1377,229.61,229.53,0.12549]
[1733750981738,6.1377,229.61,229.51,24.027864]
[1733750982203,6.1377,229.61,229.48,12.55102021]
[1733750982404,20.0,229.58,229.45,0.6533652]
[1733750982722,20.0,229.58,229.43,0.65354401]
[1733750983034,20.0,229.58,229.44,0.12549]
[1733750983404,20.0,229.58,229.37,6.74505188]
[1733750983405,20.0,229.58,229.39,12.55102021]
[1733750983638,1.5914,229.57,229.4,0.65368608]
[1733750983837,20.0,229.53,229.41,0.25098]
[1733750984212,20.0,229.53,229.4,13.20470629]
[1733750984938,6.0721,229.56,229.42,0.12549]
[1733750985244,6.0721,229.56,229.44,0.12549]
[1733750985538,6.0721,229.56,229.44,0.7790836]
[1733750985749,6.0721,229.56,229.46,0.12549]
[1733750986754,6.0721,229.56,229.44,23.902374]
[1733750988316,6.0721,229.56,229.46,23.902374]
[1733750988511,6.0721,229.56,229.48,0.12549]
[1733750988713,1.5914,229.57,229.5,36.57888421]
[1733750989026,6.3709,229.61,229.52,23.902374]
[1733750989348,6.3709,229.61,229.54,23.902374]
[1733750989514,6.3709,229.61,229.55,0.65333521]
[1733750989720,6.3709,229.61,229.54,37.10672535]
[1733750990128,1.6654,229.63,229.56,23.902374]
[1733750990338,1.6654,229.63,229.56,24.5556311]
[1733750990740,1.6654,229.63,229.56,23.902374]
[1733750990938,1.6654,229.63,229.52,23.776884]
[1733750991418,1.6654,229.63,229.53,0.12549]
[1733750995838,1.6654,229.63,229.5,13.20435507]
[1733750996028,1.6654,229.63,229.51,12.67651021]
[1733750996747,1.6654,229.63,229.51,13.32987186]
[1733750997138,1.6654,229.63,229.51,0.77885165]
[1733750998349,1.6654,229.63,229.51,13.32987186]
[1733750998559,21.6654,229.63,229.51,0.77885165]
[1733750998722,21.6654,229.63,229.45,12.55102021]
[1733750998921,21.6654,229.63,229.42,1.6645]
[1733750998922,20.0,229.58,229.43,12.55102021]
[1733750999452,20.0,229.58,229.43,13.20461349]
[1733750999823,20.0,229.58,229.44,0.25098]
[1733751000020,20.0,229.58,229.46,0.12549]
[1733751000236,20.0,229.58,229.46,0.25098]
[1733751000845,6.2326,229.61,229.48,0.25098]
[1733751001364,6.2326,229.61,229.44,12.55102021]
[1733751001555,6.2326,229.61,229.44,13.20456076]
[1733751001771,6.2326,229.61,229.45,0.25098]
[1733751002019,6.2326,229.61,229.47,23.902374]
[1733751002165,20.0,229.58,229.47,23.902374]
[1733751002367,20.0,229.58,229.45,23.902374]
[1733751002670,1.5565,229.57,229.41,0.65356688]
[1733751002863,1.5565,229.57,229.43,20.0]
[1733751003058,1.5565,229.57,229.38,13.35764195]
[1733751003059,20.0,229.53,229.38,13.35764195]
[1733751003284,20.0,229.53,229.39,0.25098]
[1733751003452,20.0,229.53,229.38,0.80662174]
[1733751003865,0.12549,229.52,229.38,0.65359631]
[1733751004039,0.12549,229.52,229.31,6.70325754]
[1733751004040,1.5565,229.51,229.37,0.65380025]
[1733751004265,1.5565,229.51,229.33,12.55102021]
[1733751004266,20.0,229.46,229.33,12.55102021]
[1733751004502,20.0,229.46,229.34,0.65387253]
[1733751004690,6.5797,229.49,229.38,0.12549]
[1733751004938,6.5797,229.49,229.39,0.12549]
[1733751005231,6.5797,229.49,229.41,0.25098]
[1733751005376,6.5797,229.49,229.38,23.776884]
[1733751005807,6.5797,229.49,229.39,0.25098]
[1733751006183,6.5797,229.49,229.39,0.12549]
[1733751006508,20.0,229.46,229.37,23.776884]
[1733751006731,20.0,229.46,229.35,12.55102021]
[1733751007128,20.0,229.46,229.36,0.65379857]
[1733751007583,6.5797,229.49,229.39,0.12549]
[1733751007882,6.5797,229.49,229.4,23.902374]
[1733751008121,6.5797,229.49,229.41,0.65367625]
[1733751008364,6.5797,229.49,229.42,23.902374]
[1733751008705,6.5797,229.49,229.43,0.25098]
[1733751008914,1.5565,229.51,229.44,23.776884]
[1733751009116,1.5565,229.51,229.45,0.25098]
[1733751009333,6.4751,229.54,229.47,0.25098]
[1733751009717,6.4751,229.54,229.43,0.12549]
[1733751009887,6.4751,229.54,229.43,23.776884]
[1733751010137,6.4751,229.54,229.37,12.55102021]
[1733751010408,6.4751,229.54,229.36,12.55102021]
[1733751010606,20.0,229.51,229.39,12.80200021]
[1733751010798,20.0,229.51,229.39,0.25098]
[1733751011213,20.0,229.51,229.39,0.90467199]
[1733751011376,20.0,229.51,229.39,13.4556922]
[1733751011582,20.0,229.51,229.39,0.90467199]
[1733751011982,20.0,229.51,229.41,0.25098]
[1733751012190,20.0,229.51,229.34,13.20470656]
[1733751012608,1.5593,229.5,229.35,0.25098]
[1733751012814,1.5593,229.5,229.37,0.25098]
[1733751012972,1.5593,229.5,229.37,0.12549]
[1733751013169,1.5593,229.5,229.38,13.2048053]
[1733751013365,1.5593,229.5,229.39,23.776884]
[1733751013668,1.5593,229.5,229.4,0.12549]
[1733751014287,1.5593,229.5,229.38,24.027864]
[1733751014989,1.5593,229.5,229.38,23.902374]
[1733751015287,1.5593,229.5,229.4,23.902374]
[1733751015495,1.5593,229.5,229.42,23.902374]
[1733751015864,1.5593,229.5,229.42,23.776884]
[1733751016065,1.5593,229.5,229.43,0.25098]
[1733751016459,6.4751,229.54,229.45,0.25098]
[1733751017886,6.4751,229.54,229.43,23.776884]
[1733751018086,6.4751,229.54,229.41,23.776884]
[1733751018290,20.0,229.51,229.37,12.55102021]
[1733751018512,20.0,229.51,229.38,0.65373684]
[1733751019185,0.12549,229.49,229.32,0.65376936]
[1733751019366,6.1211,229.46,229.32,0.65376936]
[1733751019565,20.0,229.43,229.32,0.65376936]
[1733751020266,20.0,229.43,229.3,0.65393827]
[1733751021396,20.0,229.43,229.28,13.20501115]
[1733751022285,0.12549,229.42,229.26,0.6539846]
[1733751022829,20.0,229.43,229.29,0.25098]
[1733751023104,20.0,229.43,229.29,0.90500137]
[1733751023343,20.0,229.37,229.22,0.15313224]
[1733751023533,20.0,229.33,229.22,0.15313224]
[1733751023688,0.12549,229.32,229.16,0.65434617]
[1733751023893,0.12549,229.32,229.16,13.20536638]
[1733751024073,0.12549,229.32,229.17,0.25098]
[1733751024074,1.6227,229.31,229.17,0.25098]
[1733751024332,1.6227,229.31,229.18,13.20535808]
[1733751024479,1.6227,229.31,229.19,12.55102021]
[1733751024824,1.6227,229.31,229.22,12.55102021]
[1733751025008,1.6227,229.31,229.24,0.25098]
[1733751025204,20.0,229.34,229.26,0.25098]
[1733751025727,20.0,229.34,229.18,12.55102021]
[1733751025885,20.0,229.34,229.19,1.15307308]
[1733751026081,20.0,229.34,229.19,0.37647]
[1733751026407,20.0,229.34,229.19,0.25098]
[1733751026609,20.0,229.34,229.21,0.25098]
[1733751026980,20.0,229.34,229.21,24.027864]
[1733751027184,20.0,229.34,229.23,24.027864]
[1733751027390,20.0,229.34,229.23,0.25098]
[1733751027888,0.12549,229.36,229.25,0.25098]
[1733751028321,0.12549,229.36,229.16,23.902374]
[1733751028485,0.12549,229.36,229.19,0.25098]
[1733751028827,0.12549,229.36,229.2,23.776884]
[1733751029317,0.12549,229.33,229.21,0.12549]
[1733751032090,0.12549,229.33,229.21,0.25098]
[1733751033210,7.6831,229.32,229.2,23.776884]
[1733751033456,7.6831,229.32,229.14,0.65440764]
[1733751033457,20.0,229.29,229.14,0.65440764]
[1733751033670,0.12549,229.28,229.12,0.65445314]
[1733751034136,0.12549,229.28,229.12,13.20547335]
[1733751034289,20.0,229.29,229.16,12.55102021]
[1733751034495,20.0,229.29,229.13,12.55102021]
[1733751034716,20.0,229.29,229.14,0.65437015]
[1733751034921,7.6831,229.32,229.1,0.65443035]
[1733751034922,20.0,229.25,229.1,0.65443035]
[1733751035138,20.0,229.25,229.14,0.25098]
[1733751035432,20.0,229.25,229.14,0.90536053]
[1733751035787,20.0,229.25,229.09,13.35866624]
[1733751036120,0.12549,229.24,229.1,23.776884]
[1733751036414,0.12549,229.24,229.13,0.25098]
[1733751036621,0.12549,229.24,229.15,0.12549]
[1733751038515,0.12549,229.24,229.11,0.65447548]
[1733751038714,0.12549,229.24,229.1,0.65455033]
[1733751039113,0.12549,229.24,229.11,0.12549]
[1733751039553,0.12549,229.24,229.11,0.25098]
[1733751039696,0.12549,229.24,229.1,23.902374]
[1733751039897,0.12549,229.24,229.1,23.776884]
[1733751040099,0.12549,229.24,229.12,23.776884]
[1733751040309,0.12549,229.24,229.15,0.12549]
[1733751040538,20.0,229.25,229.15,0.12549]
[1733751041432,0.12549,229.24,229.13,24.027864]
[1733751041611,0.12549,229.24,229.15,23.902374]
[1733751042421,0.12549,229.24,229.12,23.776884]
[1733751043233,0.12549,229.24,229.07,0.65451354]
[1733751043539,20.0,229.2,229.07,0.65451354]
[1733751043711,20.0,229.2,229.08,0.12549]
[1733751044404,20.0,229.2,229.09,0.12549]
[1733751045988,20.0,229.2,229.1,23.776884]
[1733751046639,0.12549,229.19,229.06,5.93037755]
[1733751046840,1.6466,229.18,229.07,23.776884]
[1733751047100,0.12549,229.17,229.07,23.776884]
[1733751047268,0.12549,229.17,229.06,5.93037755]
[1733751048240,0.25098,229.17,229.06,5.93037755]
[1733751049478,20.0,229.13,229.06,5.93037755]
[1733751049969,0.12549,229.12,229.06,5.93037755]
[1733751052374,1.5244,229.11,229.06,5.93037755]
[1733751052576,0.12549,229.1,229.06,5.93037755]
[1733751058475,0.25098,229.1,229.06,5.93037755]
[1733751059195,0.12549,229.1,229.06,5.93037755]
[1733751059865,1.5244,229.11,229.06,5.93037755]
[1733751061958,0.12549,229.1,229.06,5.93037755]
[1733751062552,1.5244,229.11,229.06,5.93037755]
[1733751063785,20.0,229.13,229.06,5.93037755]
[1733751067621,20.0,229.13,229.07,0.12549]
[1733751069416,0.12549,229.12,229.06,5.93037755]
[1733751069806,0.25098,229.12,229.06,5.93037755]
[1733751070692,0.12549,229.1,229.06,5.93037755]
[1733751070933,0.25098,229.1,229.06,5.93037755]
[1733751071406,0.12549,229.1,229.06,5.93037755]
[1733751072274,1.583,229.11,229.07,0.12549]
[1733751072527,6.25,229.16,229.07,0.12549]
[1733751072808,6.25,229.16,229.06,5.93037755]
[1733751073393,0.12549,229.15,229.06,5.93037755]
[1733751073816,0.12549,229.12,229.06,5.93037755]
[1733751075283,6.25,229.16,229.07,0.12549]
[1733751075517,0.12549,229.15,229.07,0.12549]
[1733751076683,20.0,229.13,229.07,0.12549]
[1733751076886,20.0,229.13,229.07,23.902374]
[1733751077509,6.25,229.16,229.07,23.902374]
[1733751078532,6.25,229.16,229.08,0.12549]
[1733751078730,1.6662,229.17,229.08,0.12549]
[1733751079099,1.69833792,229.26,229.11,24.027864]
[1733751079416,8.1932,229.29,229.13,24.027864]
[1733751080222,8.1932,229.29,229.15,24.027864]
[1733751080387,8.1932,229.29,229.14,13.20547231]
[1733751080388,8.1932,229.29,229.19,24.027864]
[1733751080829,8.1932,229.29,229.19,0.25098]
[1733751081316,8.1932,229.29,229.18,0.25098]
[1733751081824,8.1932,229.29,229.18,0.12549]
[1733751081825,20.0,229.26,229.18,0.12549]
[1733751081988,0.12549,229.25,229.18,0.12549]
[1733751083318,20.0,229.26,229.17,0.25098]
[1733751083487,0.12549,229.28,229.17,0.25098]
[1733751083682,8.1932,229.29,229.19,0.25098]
[1733751083889,8.1932,229.29,229.19,23.902374]
[1733751084318,7.7932,229.29,229.14,12.55102021]
[1733751084480,7.7932,229.29,229.15,23.776884]
[1733751084687,20.0,229.26,229.16,0.25098]
[1733751085227,0.12549,229.25,229.14,23.776884]
[1733751085396,0.12549,229.25,229.08,2.26863425]
[1733751085716,0.12549,229.25,229.08,14.81965446]
[1733751085922,0.12549,229.25,229.1,12.55102021]
[1733751086104,0.12549,229.25,229.11,12.55102021]
[1733751086364,0.12549,229.25,229.15,0.25098]
[1733751086692,20.0,229.26,229.17,0.12549]
[1733751086922,20.0,229.26,229.17,0.25098]
[1733751087286,20.0,229.26,229.17,24.027864]
[1733751087435,7.7932,229.29,229.17,24.027864]
[1733751087617,7.7932,229.29,229.19,24.027864]
[1733751088032,7.7932,229.29,229.19,0.25098]
[1733751088644,7.7932,229.29,229.19,12.80200021]
[1733751088844,20.0,229.31,229.21,0.25098]
[1733751089225,20.0,229.31,229.21,0.12549]
[1733751089624,20.0,229.31,229.16,0.65425758]
[1733751089625,20.0,229.31,229.18,23.776884]
[1733751089825,0.12549,229.3,229.18,0.25098]
[1733751093930,0.12549,229.3,229.16,24.027864]
[1733751094122,0.12549,229.3,229.16,36.57888421]
[1733751094933,0.12549,229.3,229.18,24.027864]
[1733751095132,0.12549,229.3,229.2,23.902374]
[1733751096438,0.12549,229.3,229.2,0.12549]
[1733751096646,0.12549,229.3,229.2,0.25098]
[1733751097365,0.12549,229.3,229.19,0.12549]
[1733751097718,0.12549,229.3,229.13,12.55102021]
[1733751098127,0.25098,229.3,229.12,13.20539083]
[1733751098408,20.25098,229.3,229.1,12.55102021]
[1733751098513,20.25098,229.3,229.1,13.20552631]
[1733751098721,20.25098,229.3,229.11,12.55102021]
[1733751099840,0.12549,229.25,229.08,13.20554073]
[1733751100251,0.12549,229.25,229.09,0.25098]
[1733751100616,0.12549,229.25,229.09,0.12549]
[1733751100837,0.12549,229.25,229.11,0.12549]
[1733751101144,0.12549,229.25,229.11,23.902374]
[1733751101324,0.12549,229.25,229.12,0.12549]
[1733751102123,0.12549,229.25,229.1,24.027864]
[1733751102358,0.12549,229.25,229.1,0.12549]
[1733751102359,1.5643,229.24,229.1,0.12549]
[1733751102667,0.12549,229.19,229.06,5.93037755]
[1733751103255,0.12549,229.19,229.07,0.25098]
[1733751103638,0.12549,229.19,229.06,18.48139776]
[1733751103973,0.12549,229.19,229.07,13.20570055]
[1733751104268,0.12549,229.19,229.08,24.027864]
[1733751104470,20.0,229.2,229.08,36.57888421]
[1733751104843,6.6271,229.23,229.1,12.55102021]
[1733751105166,6.6271,229.23,229.12,0.25098]
[1733751105670,6.6271,229.23,229.14,24.027864]
[1733751106476,6.45446263,229.23,229.14,36.57888421]
[1733751106778,1.5643,229.24,229.16,24.027864]
[1733751107077,1.6512,229.37,229.19,24.027864]
[1733751107576,115.2,229.42,229.13,14.20812021]
[1733751107577,1.5134,229.35,229.13,14.20812021]
[1733751107893,0.12549,229.34,229.14,23.776884]
[1733751108082,0.12549,229.34,229.15,0.25098]
[1733751108245,20.0,229.33,229.15,0.25098]
[1733751108757,1.6301,229.29,229.1,12.55102021]
[1733751109089,20.0,229.25,229.08,1.5886]
[1733751109243,0.12549,229.24,229.08,1.5886]
[1733751109448,20.0,229.2,229.09,0.25098]
[1733751110579,20.0,229.2,229.09,24.027864]
[1733751110750,20.0,229.2,229.07,24.027864]
[1733751110952,1.6474,229.18,229.07,24.027864]
[1733751111172,0.12549,229.17,229.07,0.12549]
[1733751111475,0.12549,229.17,229.06,5.93037755]
[1733751114883,1.6474,229.18,229.06,5.93037755]
[1733751114884,0.12549,229.12,229.06,5.93037755]
[1733751119177,6.4801,229.16,229.06,5.93037755]
[1733751119387,0.12549,229.15,229.06,5.93037755]
[1733751120598,6.4801,229.16,229.06,5.93037755]
[1733751120599,0.12549,229.12,229.06,5.93037755]
[1733751121419,0.25098,229.12,229.06,5.93037755]
[1733751121622,20.25098,229.12,229.06,5.93037755]
[1733751122211,0.25098,229.12,229.06,5.93037755]
[1733751122431,20.25098,229.12,229.06,5.93037755]
[1733751122728,20.0,229.11,229.06,5.93037755]
[1733751122936,0.12549,229.1,229.06,5.93037755]
[1733751123500,0.12549,229.12,229.06,5.93037755]
[1733751125544,0.25098,229.12,229.06,5.93037755]
[1733751125709,20.0,229.11,229.06,5.93037755]
[1733751126405,0.12549,229.1,229.06,5.93037755]
[1733751127339,0.25098,229.1,229.06,5.93037755]
[1733751127808,20.0,229.13,229.06,5.93037755]
[1733751128235,8.14835785,229.16,229.06,5.93037755]
[1733751128934,0.12549,229.15,229.06,5.93037755]
[1733751129104,6.4801,229.16,229.06,5.93037755]
[1733751129932,6.4801,229.16,229.07,23.776884]
[1733751130119,1.6474,229.18,229.07,23.776884]
[1733751130444,6.0677,229.21,229.07,23.776884]
[1733751130604,6.0677,229.21,229.08,0.12549]
[1733751130816,6.0677,229.21,229.08,12.80200021]
[1733751131035,6.0677,229.21,229.1,0.12549]
[1733751131608,6.0677,229.21,229.08,0.12549]
[1733751131609,6.0677,229.21,229.09,0.12549]
[1733751131831,6.0677,229.21,229.07,23.776884]
[1733751132647,0.12549,229.2,229.07,23.776884]
[1733751132810,0.12549,229.2,229.08,12.80200021]
[1733751132811,20.0,229.18,229.08,12.80200021]
[1733751133008,1.5661,229.23,229.1,12.80200021]
[1733751133205,6.6254,229.26,229.13,23.776884]
[1733751133514,6.6254,229.26,229.14,0.12549]
[1733751133718,1.5707,229.29,229.14,0.12549]
[1733751134848,20.0,229.28,229.14,0.12549]
[1733751135341,0.12549,229.27,229.14,0.12549]
[1733751136038,0.12549,229.27,229.12,14.06932021]
[1733751136039,0.25098,229.25,229.12,1.5183]
[1733751136223,0.25098,229.23,229.06,7.57477755]
[1733751137026,0.25098,229.23,229.07,0.25098]
[1733751137227,0.12549,229.25,229.07,0.25098]